Workbook

Sheet Completo (3)
F1: MINISTERIO DE MEDIO AMBIENTE Y RECURSOS NATURALES
F2: Direccion Administrativa, Departamento de Contabilidad
F3: Listado de Activos de Datos Generales
A4: CATG | B4: CÓDIGO | C4: DESCRIPCION | D4: FECHA | E4: AÑOS | F4: VALOR ADQUISICION | G4: ESTATUS | H4: MESES | I4: % DEPRE | J4: DEPRE MENSUAL | K4: DEPRE ANUAL | L4: DEPRE ACUMULADA | M4: VALOR LIBRO | N4: FORM
A5: ACCESO A LA INFORMACION PUBLICA
A6: 1213 | B6: 1213-01-06-0934 | C6: NEVERA EJECUTIVA | D6: 2019-05-22 | E6: 10 | F6: 12,980.00 | G6: Activo | H6: =(YEAR(NOW())-YEAR(D6))*12+MONTH(NOW())-MONTH(D6) -> 9 | I6: 10% | J6: =F6/120 -> 108.17 | K6: =F6/120*12 -> 1,298.00 | L6: =F6-M6 -> 12,006.50 | M6: =N6 -> 973.50 | N6: =IF(VALUE(F6/120)*H6>F6,1,(F6/120)*H6) -> 973.50
A8: AREA FABRIL | J8: =SUBTOTAL(9,J5:J5) -> 0 | K8: =SUBTOTAL(9,K5:K5) -> 0 | L8: =SUBTOTAL(9,L5:L5) -> 0 | M8: =SUBTOTAL(9,M5:M5) -> 0
A9: 1213 | B9: 1213-04-07-0044 | C9: CAMAROTE TWIN CON SUS COLCHONES | D9: 2012-01-06 | E9: 10 | F9: 15,080.00 | G9: Activo | H9: =(YEAR(NOW())-YEAR(D9))*12+MONTH(NOW())-MONTH(D9) -> 97 | I9: 10% | J9: =F9/120 -> 125.67 | K9: =F9/120*12 -> 1,508.00 | L9: =F9-M9 -> 2,890.33 | M9: =N9 -> 12,189.67 | N9: =IF(VALUE(F9/120)*H9>F9,1,(F9/120)*H9) -> 12,189.67
A10: 1213 | B10: 1213-04-07-0045 | C10: CAMAROTE TWIN CON SUS COLCHONES | D10: 2012-01-06 | E10: 10 | F10: 15,080.00 | G10: Activo | H10: 97 | I10: 10% | J10: 125.67 | K10: 1,508.00 | L10: 2,890.33 | M10: 12,189.67 | N10: =IF(VALUE(F10/120)*H10>F10,1,(F10/120)*H10) -> 12,189.67
A11: 1216 | B11: 1216-04-05-0017 | C11: MOTOSIERRA DE 13.2 DE 1/4 | D11: 2016-03-23 | E11: 10 | F11: 61,305.00 | G11: Activo | H11: 47 | I11: 10% | J11: 510.88 | K11: 6,130.50 | L11: 13,282.75 | M11: 48,022.25 | N11: =IF(VALUE(F11/60)*H11>F11,1,(F11/60)*H11) -> 48,022.25
A12: 1216 | B12: 1216-04-01-0343 | C12: SIERRA ELECTRICA | D12: 2016-08-29 | E12: 10 | F12: 56,640.00 | G12: Activo | H12: 42 | I12: 10% | J12: 472.00 | K12: 5,664.00 | L12: 16,992.00 | M12: 39,648.00 | N12: =IF(VALUE(F12/60)*H12>F12,1,(F12/60)*H12) -> 39,648.00
A13: 1217 | B13: 1217-01-05-0022 | C13: INCENDIO | D13: 2009-09-23 | E13: 10 | F13: 7,888.00 | G13: Activo | H13: 125 | I13: 10% | J13: 65.73 | K13: 788.80 | L13: 7,887.00 | M13: 1.00 | N13: =IF(VALUE(F13/120)*H13>F13,1,(F13/120)*H13) -> 1.00
A14: 1217 | B14: 1217-04-01-0471 | C14: RADIO DE COMUNICACION MOVIL EP-450 VHF | D14: 2012-06-04 | E14: 10 | F14: 19,076.70 | G14: Activo | H14: 92 | I14: 10% | J14: 158.97 | K14: 1,907.67 | L14: 4,451.23 | M14: 14,625.47 | N14: =IF(VALUE(F14/120)*H14>F14,1,(F14/120)*H14) -> 14,625.47
A15: 1217 | B15: 1217-04-01-0472 | C15: RADIO DE COMUNICACION FIJO PRO 5100 Y ACCESORIOS | D15: 2012-06-04 | E15: 10 | F15: 45,122.72 | G15: Activo | H15: 92 | I15: 10% | J15: 376.02 | K15: 4,512.27 | L15: 10,528.63 | M15: 34,594.09 | N15: =IF(VALUE(F15/120)*H15>F15,1,(F15/120)*H15) -> 34,594.09
A17: AUDITORIA INTERNA | K17: =SUBTOTAL(9,K9:K15) -> 22,019.24
A18: 1213 | B18: 1213-01-02-0780 | C18: SILLON TECNICO CON BRAZOS | D18: 2009-12-23 | E18: 10 | F18: 3,328.78 | G18: Activo | H18: =(YEAR(NOW())-YEAR(D18))*12+MONTH(NOW())-MONTH(D18) -> 122 | I18: 10% | J18: =F18/120 -> 27.74 | K18: =F18/120*12 -> 332.88 | L18: =F18-M18 -> 3,327.78 | M18: =N18 -> 1.00 | N18: =IF(VALUE(F18/120)*H18>F18,1,(F18/120)*H18) -> 1.00
A19: 1213 | B19: 1213-01-02-0781 | C19: SILLON TECNICO CON BRAZOS | D19: 2009-12-23 | E19: 10 | F19: 3,328.78 | G19: Activo | H19: 122 | I19: 10% | J19: 27.74 | K19: 332.88 | L19: 3,327.78 | M19: 1.00 | N19: 1.00
A20: 1213 | B20: 1213-01-03-0527 | C20: ARCHIVO MODULAR DE 3 GAVETAS | D20: 2011-09-05 | E20: 10 | F20: 7,946.00 | G20: Activo | H20: 101 | I20: 10% | J20: 66.22 | K20: 794.60 | L20: 1,258.12 | M20: 6,687.88 | N20: 6,687.88
A21: 1213 | B21: 1213-01-04-0311 | C21: MAQUINAS DE CALCULAR EL-2630 PIII | D21: 2011-09-05 | E21: 10 | F21: 3,712.00 | G21: Activo | H21: 101 | I21: 10% | J21: 30.93 | K21: 371.20 | L21: 587.73 | M21: 3,124.27 | N21: 3,124.27
A22: 1213 | B22: 1213-01-04-0312 | C22: MAQUINAS DE CALCULAR EL-2630 PIII | D22: 2011-09-05 | E22: 10 | F22: 3,712.00 | G22: Activo | H22: 101 | I22: 10% | J22: 30.93 | K22: 371.20 | L22: 587.73 | M22: 3,124.27 | N22: 3,124.27
A23: 1213 | B23: 1213-01-06-0438 | C23: NEVERA EJECUTIVA | D23: 2011-09-05 | E23: 10 | F23: 10,556.00 | G23: Activo | H23: 101 | I23: 10% | J23: 87.97 | K23: 1,055.60 | L23: 1,671.37 | M23: 8,884.63 | N23: 8,884.63
A24: 1213 | B24: 1213-01-06-0436 | C24: MICROONDAS 0GKE2701 | D24: 2011-09-05 | E24: 10 | F24: 7,946.00 | G24: Activo | H24: 101 | I24: 10% | J24: 66.22 | K24: 794.60 | L24: 1,258.12 | M24: 6,687.88 | N24: 6,687.88
A25: 1213 | B25: 1213-01-03-0583 | C25: ARCHIVO MODULAR DE 3 GAVETAS EN METAL | D25: 2012-03-13 | E25: 10 | F25: 4,582.00 | G25: Activo | H25: 95 | I25: 10% | J25: 38.18 | K25: 458.20 | L25: 954.58 | M25: 3,627.42 | N25: 3,627.42
A26: 1213 | B26: 1213-01-04-0326 | C26: MAQUINA CALCULADORA DE 12 DIGITOS | D26: 2012-03-13 | E26: 10 | F26: 3,422.00 | G26: Activo | H26: 95 | I26: 10% | J26: 28.52 | K26: 342.20 | L26: 712.92 | M26: 2,709.08 | N26: 2,709.08
A27: 1213 | B27: 1213-01-04-0328 | C27: MAQUINA CALCULADORA DE 12 DIGITOS | D27: 2012-03-13 | E27: 10 | F27: 3,422.00 | G27: Activo | H27: 95 | I27: 10% | J27: 28.52 | K27: 342.20 | L27: 712.92 | M27: 2,709.08 | N27: 2,709.08
A28: 1213 | B28: 1213-01-06-0591 | C28: BEBEDERO DE AGUA FRIA Y CALIENTE | D28: 2012-07-09 | E28: 10 | F28: 11,660.88 | G28: Activo | H28: 91 | I28: 10% | J28: 97.17 | K28: 1,166.09 | L28: 2,818.05 | M28: 8,842.83 | N28: 8,842.83
A29: 1213 | B29: 1213-01-04-0334 | C29: MAQUINAS SUMADORA DE 12 DIGITOS | D29: 2014-01-10 | E29: 10 | F29: 4,425.00 | G29: Activo | H29: 73 | I29: 10% | J29: 36.88 | K29: 442.50 | L29: 1,733.13 | M29: 2,691.88 | N29: 2,691.88
A30: 1213 | B30: 1213-01-04-0335 | C30: MAQUINAS SUMADORA DE 12 DIGITOS | D30: 2014-01-10 | E30: 10 | F30: 4,425.00 | G30: Activo | H30: 73 | I30: 10% | J30: 36.88 | K30: 442.50 | L30: 1,733.13 | M30: 2,691.88 | N30: 2,691.88
A31: 1213 | B31: 1213-01-04-0336 | C31: MAQUINAS SUMADORA DE 12 DIGITOS | D31: 2014-01-10 | E31: 10 | F31: 4,425.00 | G31: Activo | H31: 73 | I31: 10% | J31: 36.88 | K31: 442.50 | L31: 1,733.13 | M31: 2,691.88 | N31: 2,691.88
A32: 1213 | B32: 1213-01-03-0611 | C32: ARCHIVO MODULAR DE 3 GAVETAS | D32: 2014-05-28 | E32: 10 | F32: 7,021.00 | G32: Activo | H32: 69 | I32: 10% | J32: 58.51 | K32: 702.10 | L32: 2,983.93 | M32: 4,037.08 | N32: 4,037.08
A33: 1213 | B33: 1213-01-03-0612 | C33: ARCHIVO MODULAR DE 3 GAVETAS | D33: 2014-05-28 | E33: 10 | F33: 7,021.00 | G33: Activo | H33: 69 | I33: 10% | J33: 58.51 | K33: 702.10 | L33: 2,983.93 | M33: 4,037.08 | N33: 4,037.08
A34: 1213 | B34: 1213-01-03-0613 | C34: ARCHIVO MODULAR DE 3 GAVETAS | D34: 2014-05-28 | E34: 10 | F34: 7,021.00 | G34: Activo | H34: 69 | I34: 10% | J34: 58.51 | K34: 702.10 | L34: 2,983.93 | M34: 4,037.08 | N34: 4,037.08
A35: 1213 | B35: 1213-01-06-0649 | C35: NEVERA EJECUTIVA | D35: 2014-08-12 | E35: 10 | F35: 20,296.00 | G35: Activo | H35: 66 | I35: 10% | J35: 169.13 | K35: 2,029.60 | L35: 9,133.20 | M35: 11,162.80 | N35: 11,162.80
A36: 1213 | B36: 1213-01-02-1262 | C36: SILLON EJECUTIVO EN TELA | D36: 2015-04-10 | E36: 10 | F36: 7,167.32 | G36: Activo | H36: 58 | I36: 10% | J36: 59.73 | K36: 716.73 | L36: 3,703.12 | M36: 3,464.20 | N36: 3,464.20
A37: 1213 | B37: 1213-01-02-1468 | C37: SILLAS SECRETARIAL ERGONOMICAS | D37: 2016-08-04 | E37: 10 | F37: 6,985.00 | G37: Activo | H37: 42 | I37: 10% | J37: 58.21 | K37: 698.50 | L37: 4,540.25 | M37: 2,444.75 | N37: 2,444.75
A38: 1213 | B38: 1213-01-02-1469 | C38: SILLAS SECRETARIAL ERGONOMICAS | D38: 2016-08-04 | E38: 10 | F38: 6,985.00 | G38: Activo | H38: 42 | I38: 10% | J38: 58.21 | K38: 698.50 | L38: 4,540.25 | M38: 2,444.75 | N38: 2,444.75
A39: 1213 | B39: 1213-01-02-1470 | C39: SILLAS SECRETARIAL ERGONOMICAS | D39: 2016-08-04 | E39: 10 | F39: 6,985.00 | G39: Activo | H39: 42 | I39: 10% | J39: 58.21 | K39: 698.50 | L39: 4,540.25 | M39: 2,444.75 | N39: 2,444.75
A40: 1213 | B40: 1213-01-02-1471 | C40: SILLAS SECRETARIAL ERGONOMICAS | D40: 2016-08-04 | E40: 10 | F40: 6,985.00 | G40: Activo | H40: 42 | I40: 10% | J40: 58.21 | K40: 698.50 | L40: 4,540.25 | M40: 2,444.75 | N40: 2,444.75
A41: 1213 | B41: 1213-01-02-1472 | C41: SILLAS SECRETARIAL ERGONOMICAS | D41: 2016-08-04 | E41: 10 | F41: 6,985.00 | G41: Activo | H41: 42 | I41: 10% | J41: 58.21 | K41: 698.50 | L41: 4,540.25 | M41: 2,444.75 | N41: 2,444.75
A42: 1213 | B42: 1213-01-02-1474 | C42: SILLAS SECRETARIAL ERGONOMICAS | D42: 2016-08-04 | E42: 10 | F42: 6,986.00 | G42: Activo | H42: 42 | I42: 10% | J42: 58.22 | K42: 698.60 | L42: 4,540.90 | M42: 2,445.10 | N42: 2,445.10
A43: 1213 | B43: 1213-01-02-1475 | C43: SILLAS SECRETARIAL ERGONOMICAS | D43: 2016-08-04 | E43: 10 | F43: 6,986.00 | G43: Activo | H43: 42 | I43: 10% | J43: 58.22 | K43: 698.60 | L43: 4,540.90 | M43: 2,445.10 | N43: 2,445.10
A44: 1213 | B44: 1213-01-02-1476 | C44: SILLAS SECRETARIAL ERGONOMICAS | D44: 2016-08-04 | E44: 10 | F44: 6,986.00 | G44: Activo | H44: 42 | I44: 10% | J44: 58.22 | K44: 698.60 | L44: 4,540.90 | M44: 2,445.10 | N44: 2,445.10
A45: 1213 | B45: 1213-01-06-0786 | C45: AIRE ACONDICIONADO 5 TONELADA | D45: 2016-09-05 | E45: 10 | F45: 372,021.00 | G45: Activo | H45: 41 | I45: 10% | J45: 3,100.18 | K45: 37,202.10 | L45: 244,913.83 | M45: 127,107.18 | N45: 127,107.18
A46: 1213 | B46: 1213-01-04-0364 | C46: SUMADORA SHARP 1801 | D46: 2017-01-26 | E46: 10 | F46: 3,357.00 | G46: Activo | H46: 37 | I46: 10% | J46: 27.98 | K46: 335.70 | L46: 2,321.93 | M46: 1,035.08 | N46: 1,035.08
A47: 1213 | B47: 1213-01-04-0365 | C47: SUMADORA SHARP 1801 | D47: 2017-01-26 | E47: 10 | F47: 3,357.00 | G47: Activo | H47: 37 | I47: 10% | J47: 27.98 | K47: 335.70 | L47: 2,321.93 | M47: 1,035.08 | N47: 1,035.08
A48: 1213 | B48: 1213-01-04-0366 | C48: SUMADORA SHARP 1801 | D48: 2017-01-26 | E48: 10 | F48: 3,358.00 | G48: Activo | H48: 37 | I48: 10% | J48: 27.98 | K48: 335.80 | L48: 2,322.62 | M48: 1,035.38 | N48: 1,035.38
A49: 1213 | B49: 1213-01-04-0367 | C49: SUMADORA SHARP 1801 | D49: 2017-01-26 | E49: 10 | F49: 3,357.00 | G49: Activo | H49: 37 | I49: 10% | J49: 27.98 | K49: 335.70 | L49: 2,321.93 | M49: 1,035.08 | N49: 1,035.08
A50: 1213 | B50: 1213-01-04-0368 | C50: SUMADORA SHARP 1801 | D50: 2017-01-26 | E50: 10 | F50: 3,357.00 | G50: Activo | H50: =(YEAR(NOW())-YEAR(D50))*12+MONTH(NOW())-MONTH(D50) -> 37 | I50: 10% | J50: 27.98 | K50: 335.70 | L50: =F50-M50 -> 2,321.93 | M50: =N50 -> 1,035.08 | N50: 1,035.08
A51: 1213 | B51: 1213-01-04-0369 | C51: SUMADORA SHARP 1801 | D51: 2017-01-26 | E51: 10 | F51: 3,357.00 | G51: Activo | H51: 37 | I51: 10% | J51: 27.98 | K51: 335.70 | L51: 2,321.93 | M51: 1,035.08 | N51: 1,035.08
A52: 1213 | B52: 1213-01-04-0370 | C52: SUMADORA SHARP 1801 | D52: 2017-01-26 | E52: 10 | F52: 3,357.00 | G52: Activo | H52: 37 | I52: 10% | J52: 27.98 | K52: 335.70 | L52: 2,321.93 | M52: 1,035.08 | N52: 1,035.08
A53: 1213 | B53: 1213-01-04-0371 | C53: SUMADORA SHARP 1801 | D53: 2017-01-26 | E53: 10 | F53: 3,357.00 | G53: Activo | H53: 37 | I53: 10% | J53: 27.98 | K53: 335.70 | L53: 2,321.93 | M53: 1,035.08 | N53: 1,035.08
A54: 1213 | B54: 1213-01-04-0372 | C54: SUMADORA SHARP 1801 | D54: 2017-01-26 | E54: 10 | F54: 3,357.00 | G54: Activo | H54: 37 | I54: 10% | J54: 27.98 | K54: 335.70 | L54: 2,321.93 | M54: 1,035.08 | N54: 1,035.08
A55: 1213 | B55: 1213-01-04-0398 | C55: SUMADORA SHARP 1801 | D55: 2017-01-26 | E55: 10 | F55: 3,356.90 | G55: Activo | H55: 37 | I55: 10% | J55: 27.97 | K55: 335.69 | L55: 2,321.86 | M55: 1,035.04 | N55: 1,035.04
A56: 1213 | B56: 1213-01-02-1806 | C56: SILLON EJECUTIVO | D56: 2018-12-28 | E56: 10 | F56: 15,744.00 | G56: Activo | H56: 14 | I56: 10% | J56: 131.20 | K56: 1,574.40 | L56: 13,907.20 | M56: 1,836.80 | N56: 1,836.80
A57: 1214 | B57: 1214-01-14-0045 | C57: SCANNER IX500 | D57: 2015-09-14 | E57: 3 | F57: 28,873.28 | G57: Activo | H57: 53 | I57: 33% | J57: =F57/36 -> 802.04 | K57: =F57/36*12 -> 9,624.43 | L57: 3,368.55 | M57: 25,504.73 | N57: =IF(VALUE(F57/60)*H57>F57,1,(F57/60)*H57) -> 25,504.73
A58: 1214 | B58: 1214-01-14-0046 | C58: SCANNER IX500 | D58: 2015-09-14 | E58: 3 | F58: 28,873.28 | G58: Activo | H58: 53 | I58: 33% | J58: 802.04 | K58: 9,624.43 | L58: 3,368.55 | M58: 25,504.73 | N58: 25,504.73
A59: 1214 | B59: 1214-01-14-0047 | C59: SCANNER IX500 | D59: 2015-09-14 | E59: 3 | F59: 28,873.28 | G59: Activo | H59: 53 | I59: 33% | J59: 802.04 | K59: 9,624.43 | L59: 3,368.55 | M59: 25,504.73 | N59: 25,504.73
A60: 1214 | B60: 1214-01-14-0050 | C60: SCANNER | D60: 2016-02-25 | E60: 3 | F60: 24,649.00 | G60: Activo | H60: 48 | I60: 33% | J60: 684.69 | K60: 8,216.33 | L60: 4,929.80 | M60: 19,719.20 | N60: 19,719.20
A61: 1214 | B61: 1214-01-14-0051 | C61: SCANNER | D61: 2016-02-25 | E61: 3 | F61: 24,649.00 | G61: Activo | H61: 48 | I61: 33% | J61: 684.69 | K61: 8,216.33 | L61: 4,929.80 | M61: 19,719.20 | N61: 19,719.20
A62: 1214 | B62: 1214-01-14-0052 | C62: SCANNER | D62: 2016-02-25 | E62: 3 | F62: 24,649.00 | G62: Activo | H62: 48 | I62: 33% | J62: 684.69 | K62: 8,216.33 | L62: 4,929.80 | M62: 19,719.20 | N62: 19,719.20
A63: 1214 | B63: 1214-01-03-0930 | C63: MONITOR LCD 19 PULG | D63: 2018-04-24 | E63: 3 | F63: 6,000.00 | G63: Activo | H63: 22 | I63: 33% | J63: 166.67 | K63: 2,000.00 | L63: 3,800.00 | M63: 2,200.00 | N63: 2,200.00
A64: 1214 | B64: 1214-01-01-0911 | C64: PC PERSONAL | D64: 2018-04-26 | E64: 3 | F64: 35,359.00 | G64: Activo | H64: 22 | I64: 33% | J64: 982.19 | K64: 11,786.33 | L64: 22,394.03 | M64: 12,964.97 | N64: 12,964.97
A65: 1214 | B65: 1214-01-14-0107 | C65: SCANER | D65: 2019-05-07 | E65: 3 | F65: 33,720.00 | G65: Activo | H65: 9 | I65: 33% | J65: 936.67 | K65: 11,240.00 | L65: 28,662.00 | M65: 5,058.00 | N65: 5,058.00
A66: 1214 | B66: 1214-01-14-0108 | C66: SCANER | D66: 2019-05-07 | E66: 3 | F66: 33,720.00 | G66: Activo | H66: 9 | I66: 33% | J66: 936.67 | K66: 11,240.00 | L66: 28,662.00 | M66: 5,058.00 | N66: 5,058.00
A67: 1214 | B67: 1214-01-14-0109 | C67: SCANER | D67: 2019-05-07 | E67: 3 | F67: 33,720.00 | G67: Activo | H67: 9 | I67: 33% | J67: 936.67 | K67: 11,240.00 | L67: 28,662.00 | M67: 5,058.00 | N67: 5,058.00
A68: 1217 | B68: 1217-01-05-0097 | C68: EXTINTOR ECOLOGICO | D68: 2014-04-07 | E68: 10 | F68: 6,844.00 | G68: Activo | H68: 70 | I68: 10% | J68: =F68/120 -> 57.03 | K68: =F68/120*12 -> 684.40 | L68: 2,851.67 | M68: 3,992.33 | N68: =IF(VALUE(F68/120)*H68>F68,1,(F68/120)*H68) -> 3,992.33
A69: BANCO DE SEMILLAS | K69: =SUBTOTAL(9,K18:K68) -> 161,976.68
A70: 1291 | B70: 1291-05-02-0001 | C70: CABALLO | D70: 2001-05-02 | E70: 5 | F70: 2,000.00 | G70: Activo | H70: =(YEAR(NOW())-YEAR(D70))*12+MONTH(NOW())-MONTH(D70) -> 225 | I70: 20% | J70: =F70/60 -> 33.33 | K70: =F70/60*12 -> 400.00 | L70: =F70-M70 -> 1,999.00 | M70: =N70 -> 1.00 | N70: =IF(VALUE(F70/120)*H70>F70,1,(F70/120)*H70) -> 1.00
A71: 1291 | B71: 1291-05-02-0002 | C71: CABALLO | D71: 2001-05-02 | E71: 5 | F71: 5,000.00 | G71: Activo | H71: 225 | I71: 20% | J71: 83.33 | K71: 1,000.00 | L71: 4,999.00 | M71: 1.00 | N71: 1.00
A72: 1291 | B72: 1291-05-02-0003 | C72: CABALLO | D72: 2001-05-02 | E72: 5 | F72: 4,225.00 | G72: Activo | H72: 225 | I72: 20% | J72: 70.42 | K72: 845.00 | L72: 4,224.00 | M72: 1.00 | N72: 1.00
A73: 1291 | B73: 1291-05-01-0021 | C73: MULO | D73: 2001-05-18 | E73: 5 | F73: 4,500.00 | G73: Activo | H73: 225 | I73: 20% | J73: 75.00 | K73: 900.00 | L73: 4,499.00 | M73: 1.00 | N73: 1.00
A74: 1291 | B74: 1291-05-01-0022 | C74: MULO | D74: 2001-05-18 | E74: 5 | F74: 2,500.00 | G74: Activo | H74: 225 | I74: 20% | J74: 41.67 | K74: 500.00 | L74: 2,499.00 | M74: 1.00 | N74: 1.00
A75: 1291 | B75: 1291-05-01-0023 | C75: MULO | D75: 2001-05-18 | E75: 5 | F75: 2,500.00 | G75: Activo | H75: 225 | I75: 20% | J75: 41.67 | K75: 500.00 | L75: 2,499.00 | M75: 1.00 | N75: 1.00
A76: 1291 | B76: 1291-05-01-0024 | C76: MULO | D76: 2001-05-18 | E76: 5 | F76: 2,500.00 | G76: Activo | H76: 225 | I76: 20% | J76: 41.67 | K76: 500.00 | L76: 2,499.00 | M76: 1.00 | N76: 1.00
A77: 1291 | B77: 1291-05-01-0025 | C77: MULO | D77: 2001-05-18 | E77: 5 | F77: 2,500.00 | G77: Activo | H77: 225 | I77: 20% | J77: 41.67 | K77: 500.00 | L77: 2,499.00 | M77: 1.00 | N77: 1.00
A78: 1291 | B78: 1291-05-01-0026 | C78: MULO | D78: 2001-05-18 | E78: 5 | F78: 2,500.00 | G78: Activo | H78: 225 | I78: 20% | J78: 41.67 | K78: 500.00 | L78: 2,499.00 | M78: 1.00 | N78: 1.00
A79: 1291 | B79: 1291-05-01-0027 | C79: MULO | D79: 2001-05-18 | E79: 5 | F79: 2,500.00 | G79: Activo | H79: 225 | I79: 20% | J79: 41.67 | K79: 500.00 | L79: 2,499.00 | M79: 1.00 | N79: 1.00
A80: 1291 | B80: 1291-05-01-0018 | C80: MULO | D80: 2001-11-01 | E80: 5 | F80: 5,000.00 | G80: Activo | H80: 219 | I80: 20% | J80: 83.33 | K80: 1,000.00 | L80: 4,999.00 | M80: 1.00 | N80: 1.00
A81: 1291 | B81: 1291-05-01-0019 | C81: MULO | D81: 2001-11-01 | E81: 5 | F81: 5,000.00 | G81: Activo | H81: 219 | I81: 20% | J81: 83.33 | K81: 1,000.00 | L81: 4,999.00 | M81: 1.00 | N81: 1.00
A82: 1291 | B82: 1291-05-01-0020 | C82: MULO | D82: 2001-11-01 | E82: 5 | F82: 5,000.00 | G82: Activo | H82: 219 | I82: 20% | J82: 83.33 | K82: 1,000.00 | L82: 4,999.00 | M82: 1.00 | N82: 1.00
A83: 1291 | B83: 1291-05-01-0028 | C83: MULO | D83: 2001-12-26 | E83: 5 | F83: 4,225.00 | G83: Activo | H83: 218 | I83: 20% | J83: 70.42 | K83: 845.00 | L83: 4,224.00 | M83: 1.00 | N83: 1.00
A84: 1291 | B84: 1291-05-01-0029 | C84: MULO | D84: 2001-12-26 | E84: 5 | F84: 4,225.00 | G84: Activo | H84: 218 | I84: 20% | J84: 70.42 | K84: 845.00 | L84: 4,224.00 | M84: 1.00 | N84: 1.00
A85: 1213 | B85: 1213-04-06-0178 | C85: LAVADORA LN 6500 DE 14 LBS | D85: 2011-07-09 | E85: 10 | F85: 6,995.00 | G85: Activo | H85: 103 | I85: 10% | J85: =F85/120 -> 58.29 | K85: =F85/120*12 -> 699.50 | L85: 990.96 | M85: 6,004.04 | N85: 6,004.04
A86: 1213 | B86: 1213-04-07-0046 | C86: COLCHON BOX SPRING P/CAMAROTE | D86: 2012-04-16 | E86: 10 | F86: 8,352.00 | G86: Activo | H86: 94 | I86: 10% | J86: 69.60 | K86: 835.20 | L86: 1,809.60 | M86: 6,542.40 | N86: 6,542.40
A87: 1213 | B87: 1213-04-07-0047 | C87: COLCHON BOX SPRING P/CAMAROTE | D87: 2012-04-16 | E87: 10 | F87: 8,352.00 | G87: Activo | H87: 94 | I87: 10% | J87: 69.60 | K87: 835.20 | L87: 1,809.60 | M87: 6,542.40 | N87: 6,542.40
A88: 1213 | B88: 1213-04-03-1358 | C88: LIBRERO DE 6 PIES Y 6 DIVISIONES | D88: 2012-05-15 | E88: 10 | F88: 14,268.00 | G88: Activo | H88: 93 | I88: 10% | J88: 118.90 | K88: 1,426.80 | L88: 3,210.30 | M88: 11,057.70 | N88: 11,057.70
A89: 1213 | B89: 1213-04-03-1359 | C89: LIBRERO DE 9 PIES Y 6 DIVISIONES | D89: 2012-05-15 | E89: 10 | F89: 20,010.00 | G89: Activo | H89: 93 | I89: 10% | J89: 166.75 | K89: 2,001.00 | L89: 4,502.25 | M89: 15,507.75 | N89: 15,507.75
A90: 1213 | B90: 1213-04-08-0002 | C90: PIZARRA PLEGADIZA Y BOLSA DE CONTENCION | D90: 2013-05-03 | E90: 10 | F90: 52,625.00 | G90: Activo | H90: 81 | I90: 10% | J90: 438.54 | K90: 5,262.50 | L90: 17,103.13 | M90: 35,521.88 | N90: 35,521.88
A91: 1213 | B91: 1213-04-06-0198 | C91: ABANICO DE PEDESTAL | D91: 2013-09-20 | E91: 10 | F91: 5,800.01 | G91: Activo | H91: 77 | I91: 10% | J91: 48.33 | K91: 580.00 | L91: 2,078.34 | M91: 3,721.67 | N91: 3,721.67
A92: 1213 | B92: 1213-04-06-0199 | C92: ABANICO DE PEDESTAL | D92: 2013-09-20 | E92: 10 | F92: 5,800.01 | G92: Activo | H92: 77 | I92: 10% | J92: 48.33 | K92: 580.00 | L92: 2,078.34 | M92: 3,721.67 | N92: 3,721.67
A93: 1213 | B93: 1213-04-06-0200 | C93: ABANICO DE PEDESTAL | D93: 2013-09-20 | E93: 10 | F93: 5,800.01 | G93: Activo | H93: 77 | I93: 10% | J93: 48.33 | K93: 580.00 | L93: 2,078.34 | M93: 3,721.67 | N93: 3,721.67
A94: 1213 | B94: 1213-04-06-0201 | C94: ABANICO DE PEDESTAL | D94: 2013-09-20 | E94: 10 | F94: 5,800.01 | G94: Activo | H94: 77 | I94: 10% | J94: 48.33 | K94: 580.00 | L94: 2,078.34 | M94: 3,721.67 | N94: 3,721.67
A95: 1213 | B95: 1213-04-06-0202 | C95: ABANICO DE PEDESTAL | D95: 2013-09-20 | E95: 10 | F95: 5,800.01 | G95: Activo | H95: 77 | I95: 10% | J95: 48.33 | K95: 580.00 | L95: 2,078.34 | M95: 3,721.67 | N95: 3,721.67
A96: 1213 | B96: 1213-04-06-0203 | C96: ABANICO DE PEDESTAL | D96: 2013-09-20 | E96: 10 | F96: 5,800.00 | G96: Activo | H96: 77 | I96: 10% | J96: 48.33 | K96: 580.00 | L96: 2,078.33 | M96: 3,721.67 | N96: 3,721.67
A97: 1213 | B97: 1213-04-06-0204 | C97: ABANICO DE PEDESTAL | D97: 2013-09-20 | E97: 10 | F97: 5,800.00 | G97: Activo | H97: 77 | I97: 10% | J97: 48.33 | K97: 580.00 | L97: 2,078.33 | M97: 3,721.67 | N97: 3,721.67
A98: 1213 | B98: 1213-04-06-0205 | C98: ABANICO DE PEDESTAL | D98: 2013-09-20 | E98: 10 | F98: 5,800.00 | G98: Activo | H98: 77 | I98: 10% | J98: 48.33 | K98: 580.00 | L98: 2,078.33 | M98: 3,721.67 | N98: 3,721.67
A99: 1213 | B99: 1213-04-06-0211 | C99: BEBEDERO | D99: 2013-12-18 | E99: 10 | F99: 9,440.00 | G99: Activo | H99: 74 | I99: 10% | J99: 78.67 | K99: 944.00 | L99: 3,618.67 | M99: 5,821.33 | N99: 5,821.33
A100: 1213 | B100: 1213-02-06-0037 | C100: RELOJ ACCESORIO EN MEDICION CALIDAD DEL AIRE | D100: 2014-01-28 | E100: 10 | F100: 12,070.80 | G100: Activo | H100: 73 | I100: 10% | J100: 100.59 | K100: 1,207.08 | L100: 4,727.73 | M100: 7,343.07 | N100: 7,343.07
A101: 1213 | B101: 1213-02-06-0038 | C101: RELOJ ACCESORIO EN MEDICION CALIDAD DEL AIRE | D101: 2014-01-28 | E101: 10 | F101: 12,070.80 | G101: Activo | H101: 73 | I101: 10% | J101: 100.59 | K101: 1,207.08 | L101: 4,727.73 | M101: 7,343.07 | N101: 7,343.07
A102: 1213 | B102: 1213-02-06-0039 | C102: RELOJ ACCESORIO EN MEDICION CALIDAD DEL AIRE | D102: 2014-01-28 | E102: 10 | F102: 12,070.80 | G102: Activo | H102: 73 | I102: 10% | J102: 100.59 | K102: 1,207.08 | L102: 4,727.73 | M102: 7,343.07 | N102: =IF(VALUE(F102/120)*H102>F102,1,(F102/120)*H102) -> 7,343.07
A103: 1213 | B103: 1213-02-06-0040 | C103: RELOJ ACCESORIO EN MEDICION CALIDAD DEL AIRE | D103: 2014-01-28 | E103: 10 | F103: 12,070.80 | G103: Activo | H103: 73 | I103: 10% | J103: 100.59 | K103: 1,207.08 | L103: 4,727.73 | M103: 7,343.07 | N103: 7,343.07
A104: 1213 | B104: 1213-02-06-0041 | C104: RELOJ ACCESORIO EN MEDICION CALIDAD DEL AIRE | D104: 2014-01-28 | E104: 10 | F104: 12,070.80 | G104: Activo | H104: 73 | I104: 10% | J104: 100.59 | K104: 1,207.08 | L104: 4,727.73 | M104: 7,343.07 | N104: 7,343.07
A105: 1213 | B105: 1213-02-06-0042 | C105: RELOJ ACCESORIO EN MEDICION CALIDAD DEL AIRE | D105: 2014-01-28 | E105: 10 | F105: 12,070.80 | G105: Activo | H105: 73 | I105: 10% | J105: 100.59 | K105: 1,207.08 | L105: 4,727.73 | M105: 7,343.07 | N105: 7,343.07
A106: 1213 | B106: 1213-02-06-0043 | C106: RELOJ ACCESORIO EN MEDICION CALIDAD DEL AIRE | D106: 2014-01-28 | E106: 10 | F106: 12,070.80 | G106: Activo | H106: 73 | I106: 10% | J106: 100.59 | K106: 1,207.08 | L106: 4,727.73 | M106: 7,343.07 | N106: 7,343.07
A107: 1213 | B107: 1213-02-06-0044 | C107: RELOJ ACCESORIO EN MEDICION CALIDAD DEL AIRE | D107: 2014-01-28 | E107: 10 | F107: 12,070.80 | G107: Activo | H107: 73 | I107: 10% | J107: 100.59 | K107: 1,207.08 | L107: 4,727.73 | M107: 7,343.07 | N107: 7,343.07
A108: 1213 | B108: 1213-02-06-0045 | C108: RELOJ ACCESORIO EN MEDICION CALIDAD DEL AIRE | D108: 2014-01-28 | E108: 10 | F108: 12,070.80 | G108: Activo | H108: 73 | I108: 10% | J108: 100.59 | K108: 1,207.08 | L108: 4,727.73 | M108: 7,343.07 | N108: 7,343.07
A109: 1213 | B109: 1213-02-06-0046 | C109: RELOJ ACCESORIO EN MEDICION CALIDAD DEL AIRE | D109: 2014-01-28 | E109: 10 | F109: 12,070.80 | G109: Activo | H109: 73 | I109: 10% | J109: 100.59 | K109: 1,207.08 | L109: 4,727.73 | M109: 7,343.07 | N109: 7,343.07
A110: 1213 | B110: 1213-04-06-0218 | C110: BEBEDERO | D110: 2014-08-14 | E110: 10 | F110: 10,585.36 | G110: Activo | H110: 66 | I110: 10% | J110: 88.21 | K110: 1,058.54 | L110: 4,763.41 | M110: 5,821.95 | N110: 5,821.95
A111: 1213 | B111: 1213-04-06-0219 | C111: LICUADORA | D111: 2014-08-14 | E111: 10 | F111: 4,361.86 | G111: Activo | H111: 66 | I111: 10% | J111: 36.35 | K111: 436.19 | L111: 1,962.84 | M111: 2,399.02 | N111: 2,399.02
A112: 1213 | B112: 1213-04-06-0220 | C112: GRECA | D112: 2014-08-14 | E112: 10 | F112: 3,464.77 | G112: Activo | H112: 66 | I112: 10% | J112: 28.87 | K112: 346.48 | L112: 1,559.15 | M112: 1,905.62 | N112: 1,905.62
A113: 1213 | B113: 1213-04-06-0221 | C113: MICRONDAS | D113: 2014-08-14 | E113: 10 | F113: 9,180.00 | G113: Activo | H113: 66 | I113: 10% | J113: 76.50 | K113: 918.00 | L113: 4,131.00 | M113: 5,049.00 | N113: 5,049.00
A114: 1213 | B114: 1213-04-07-0050 | C114: COLCHON TIPO MILITAR | D114: 2014-10-09 | E114: 10 | F114: 1,829.00 | G114: Activo | H114: 64 | I114: 10% | J114: 15.24 | K114: 182.90 | L114: 853.53 | M114: 975.47 | N114: 975.47
A115: 1213 | B115: 1213-04-07-0051 | C115: COLCHON TIPO MILITAR | D115: 2014-10-09 | E115: 10 | F115: 1,829.00 | G115: Activo | H115: 64 | I115: 10% | J115: 15.24 | K115: 182.90 | L115: 853.53 | M115: 975.47 | N115: 975.47
A116: 1213 | B116: 1213-04-07-0052 | C116: COLCHON TIPO MILITAR | D116: 2014-10-09 | E116: 10 | F116: 1,829.00 | G116: Activo | H116: 64 | I116: 10% | J116: 15.24 | K116: 182.90 | L116: 853.53 | M116: 975.47 | N116: 975.47
A117: 1213 | B117: 1213-04-07-0053 | C117: COLCHON TIPO MILITAR | D117: 2014-10-09 | E117: 10 | F117: 1,829.00 | G117: Activo | H117: 64 | I117: 10% | J117: =F117/120 -> 15.24 | K117: =F117/120*12 -> 182.90 | L117: 853.53 | M117: 975.47 | N117: 975.47
A118: 1213 | B118: 1213-04-07-0054 | C118: COLCHON TIPO MILITAR | D118: 2014-10-09 | E118: 10 | F118: 1,829.00 | G118: Activo | H118: 64 | I118: 10% | J118: 15.24 | K118: 182.90 | L118: 853.53 | M118: 975.47 | N118: 975.47
A119: 1213 | B119: 1213-04-07-0055 | C119: COLCHON TIPO MILITAR | D119: 2014-10-09 | E119: 10 | F119: 1,829.00 | G119: Activo | H119: 64 | I119: 10% | J119: 15.24 | K119: 182.90 | L119: 853.53 | M119: 975.47 | N119: 975.47
A120: 1213 | B120: 1213-04-07-0056 | C120: COLCHON TIPO MILITAR | D120: 2014-10-09 | E120: 10 | F120: 1,829.00 | G120: Activo | H120: 64 | I120: 10% | J120: 15.24 | K120: 182.90 | L120: 853.53 | M120: 975.47 | N120: 975.47
A121: 1213 | B121: 1213-04-07-0057 | C121: COLCHON TIPO MILITAR | D121: 2014-10-09 | E121: 10 | F121: 1,829.00 | G121: Activo | H121: 64 | I121: 10% | J121: 15.24 | K121: 182.90 | L121: 853.53 | M121: 975.47 | N121: 975.47
A122: 1213 | B122: 1213-04-07-0058 | C122: COLCHON TIPO MILITAR | D122: 2014-10-09 | E122: 10 | F122: 1,829.00 | G122: Activo | H122: 64 | I122: 10% | J122: 15.24 | K122: 182.90 | L122: 853.53 | M122: 975.47 | N122: 975.47
A123: 1213 | B123: 1213-04-07-0059 | C123: COLCHON TIPO MILITAR | D123: 2014-10-09 | E123: 10 | F123: 1,829.00 | G123: Activo | H123: 64 | I123: 10% | J123: 15.24 | K123: 182.90 | L123: 853.53 | M123: 975.47 | N123: 975.47
A124: 1213 | B124: 1213-04-07-0060 | C124: COLCHON TIPO MILITAR | D124: 2014-10-09 | E124: 10 | F124: 1,829.00 | G124: Activo | H124: 64 | I124: 10% | J124: 15.24 | K124: 182.90 | L124: 853.53 | M124: 975.47 | N124: 975.47
A125: 1213 | B125: 1213-04-07-0061 | C125: COLCHON TIPO MILITAR | D125: 2014-10-09 | E125: 10 | F125: 1,829.00 | G125: Activo | H125: 64 | I125: 10% | J125: 15.24 | K125: 182.90 | L125: 853.53 | M125: 975.47 | N125: 975.47
A126: 1213 | B126: 1213-04-07-0062 | C126: COLCHON TIPO MILITAR | D126: 2014-10-09 | E126: 10 | F126: 1,829.00 | G126: Activo | H126: 64 | I126: 10% | J126: 15.24 | K126: 182.90 | L126: 853.53 | M126: 975.47 | N126: 975.47
A127: 1213 | B127: 1213-04-07-0063 | C127: COLCHON TIPO MILITAR | D127: 2014-10-09 | E127: 10 | F127: 1,829.00 | G127: Activo | H127: 64 | I127: 10% | J127: 15.24 | K127: 182.90 | L127: 853.53 | M127: 975.47 | N127: 975.47
A128: 1213 | B128: 1213-04-07-0064 | C128: COLCHON TIPO MILITAR | D128: 2014-10-09 | E128: 10 | F128: 1,829.00 | G128: Activo | H128: 64 | I128: 10% | J128: 15.24 | K128: 182.90 | L128: 853.53 | M128: 975.47 | N128: 975.47
A129: 1213 | B129: 1213-04-06-0223 | C129: AIRE ACONDICIONADO DE 18000 BTU | D129: 2015-07-03 | E129: 10 | F129: 36,758.52 | G129: Activo | H129: 55 | I129: 10% | J129: 306.32 | K129: 3,675.85 | L129: 19,910.87 | M129: 16,847.66 | N129: 16,847.66
A130: 1213 | B130: 1213-04-06-0224 | C130: AIRE ACONDICIONADO DE 18000 BTU | D130: 2015-07-03 | E130: 10 | F130: 36,758.52 | G130: Activo | H130: 55 | I130: 10% | J130: 306.32 | K130: 3,675.85 | L130: 19,910.87 | M130: 16,847.66 | N130: 16,847.66
A131: 1213 | B131: 1213-04-06-0225 | C131: AIRE ACONDICIONADO 18,000 BTU LENOX | D131: 2015-11-19 | E131: 10 | F131: 57,230.00 | G131: Activo | H131: 51 | I131: 10% | J131: 476.92 | K131: 5,723.00 | L131: 32,907.25 | M131: 24,322.75 | N131: 24,322.75
A132: 1213 | B132: 1213-04-06-0226 | C132: AIRE ACONDICIONADO 18,000 BTU LENOX | D132: 2015-11-19 | E132: 10 | F132: 74,930.00 | G132: Activo | H132: 51 | I132: 10% | J132: 624.42 | K132: 7,493.00 | L132: 43,084.75 | M132: 31,845.25 | N132: 31,845.25
A133: 1213 | B133: 1213-05-06-0907 | C133: AIRE ACONDICIONADO DE 18,000 BTU | D133: 2016-02-08 | E133: 10 | F133: 12,750.00 | G133: Activo | H133: 48 | I133: 10% | J133: 106.25 | K133: 1,275.00 | L133: 7,650.00 | M133: 5,100.00 | N133: 5,100.00
A134: 1213 | B134: 1213-05-06-0909 | C134: AIRE ACONDICIONADO DE 12,000 BTU | D134: 2016-02-08 | E134: 10 | F134: 8,400.00 | G134: Activo | H134: =(YEAR(NOW())-YEAR(D134))*12+MONTH(NOW())-MONTH(D134) -> 48 | I134: 10% | J134: 70.00 | K134: 840.00 | L134: =F134-M134 -> 5,040.00 | M134: =N134 -> 3,360.00 | N134: =IF(VALUE(F134/120)*H134>F134,1,(F134/120)*H134) -> 3,360.00
A135: 1213 | B135: 1213-05-06-0910 | C135: AIRE ACONDICIONADO DE 12,000 BTU | D135: 2016-02-08 | E135: 10 | F135: 8,400.00 | G135: Activo | H135: 48 | I135: 10% | J135: 70.00 | K135: 840.00 | L135: 5,040.00 | M135: 3,360.00 | N135: 3,360.00
A136: 1213 | B136: 1213-05-06-0911 | C136: AIRE ACONDICIONADO DE 12,000 BTU | D136: 2016-02-08 | E136: 10 | F136: 8,400.00 | G136: Activo | H136: 48 | I136: 10% | J136: 70.00 | K136: 840.00 | L136: 5,040.00 | M136: 3,360.00 | N136: 3,360.00
A137: 1213 | B137: 1213-05-06-0912 | C137: AIRE ACONDICIONADO DE 12,000 BTU | D137: 2016-02-08 | E137: 10 | F137: 8,400.00 | G137: Activo | H137: 48 | I137: 10% | J137: 70.00 | K137: 840.00 | L137: 5,040.00 | M137: 3,360.00 | N137: 3,360.00
A138: 1213 | B138: 1213-05-06-0913 | C138: AIRE ACONDICIONADO DE 12,000 BTU | D138: 2016-02-08 | E138: 10 | F138: 8,400.00 | G138: Activo | H138: 48 | I138: 10% | J138: 70.00 | K138: 840.00 | L138: 5,040.00 | M138: 3,360.00 | N138: 3,360.00
A139: 1213 | B139: 1213-04-03-1378 | C139: ARCHIVOS 3 GAVETAS | D139: 2017-04-05 | E139: 10 | F139: 5,350.48 | G139: Activo | H139: 34 | I139: 10% | J139: 44.59 | K139: 535.05 | L139: 3,834.51 | M139: 1,515.97 | N139: 1,515.97
A140: 1213 | B140: 1213-04-03-1379 | C140: ARCHIVOS 3 GAVETAS | D140: 2017-04-05 | E140: 10 | F140: 5,350.00 | G140: Activo | H140: 34 | I140: 10% | J140: 44.58 | K140: 535.00 | L140: 3,834.17 | M140: 1,515.83 | N140: 1,515.83
A141: 1213 | B141: 1213-04-03-1380 | C141: ARCHIVOS 3 GAVETAS | D141: 2017-04-05 | E141: 10 | F141: 5,350.00 | G141: Activo | H141: 34 | I141: 10% | J141: 44.58 | K141: 535.00 | L141: 3,834.17 | M141: 1,515.83 | N141: 1,515.83
A142: 1213 | B142: 1213-04-03-1381 | C142: ARCHIVOS 3 GAVETAS | D142: 2017-04-05 | E142: 10 | F142: 5,350.00 | G142: Activo | H142: 34 | I142: 10% | J142: 44.58 | K142: 535.00 | L142: 3,834.17 | M142: 1,515.83 | N142: 1,515.83
A143: 1213 | B143: 1213-04-06-0251 | C143: AIRE ACOND. 24 MIL BTU | D143: 2018-11-09 | E143: 10 | F143: 59,450.00 | G143: Activo | H143: 15 | I143: 10% | J143: 495.42 | K143: 5,945.00 | L143: 52,018.75 | M143: 7,431.25 | N143: 7,431.25
A144: 1213 | B144: 1213-04-06-0252 | C144: AIRE ACOND. 24 MIL BTU | D144: 2018-11-09 | E144: 10 | F144: 59,450.00 | G144: Activo | H144: 15 | I144: 10% | J144: 495.42 | K144: 5,945.00 | L144: 52,018.75 | M144: 7,431.25 | N144: 7,431.25
A145: 1213 | B145: 1213-01-04-0408 | C145: TRITURADORA PARA SUELO Y ABONO ORGANICO | D145: 2019-06-30 | E145: 10 | F145: 316,535.00 | G145: Activo | H145: 8 | I145: 10% | J145: 2,637.79 | K145: 31,653.50 | L145: 295,432.67 | M145: 21,102.33 | N145: 21,102.33
A146: 1213 | B146: 1213-01-04-0409 | C146: TRITURADORA PARA SUELO Y ABONO ORGANICO | D146: 2019-06-30 | E146: 10 | F146: 316,535.00 | G146: Activo | H146: 8 | I146: 10% | J146: 2,637.79 | K146: 31,653.50 | L146: 295,432.67 | M146: 21,102.33 | N146: 21,102.33
A147: 1213 | B147: 1213-01-04-0410 | C147: TRITURADORA PARA SUELO Y ABONO ORGANICO | D147: 2019-06-30 | E147: 10 | F147: 316,535.00 | G147: Activo | H147: 8 | I147: 10% | J147: 2,637.79 | K147: 31,653.50 | L147: 295,432.67 | M147: 21,102.33 | N147: 21,102.33
A148: 1213 | B148: 1213-01-04-0411 | C148: TRITURADORA PARA SUELO Y ABONO ORGANICO | D148: 2019-06-30 | E148: 10 | F148: 316,535.00 | G148: Activo | H148: 8 | I148: 10% | J148: 2,637.79 | K148: 31,653.50 | L148: 295,432.67 | M148: 21,102.33 | N148: 21,102.33
A149: 1213 | B149: 1213-01-06-0950 | C149: BOTELLERO VERTICAL | D149: 2019-06-30 | E149: 10 | F149: 104,430.00 | G149: Activo | H149: 8 | I149: 10% | J149: 870.25 | K149: 10,443.00 | L149: 97,468.00 | M149: 6,962.00 | N149: 6,962.00
A150: 1213 | B150: 1213-01-06-0951 | C150: BOTELLERO VERTICAL | D150: 2019-06-30 | E150: 10 | F150: 104,430.00 | G150: Activo | H150: 8 | I150: 10% | J150: 870.25 | K150: 10,443.00 | L150: 97,468.00 | M150: 6,962.00 | N150: 6,962.00
A151: 1214 | B151: 1214-05-13-0033 | C151: LAPTOP | D151: 2015-03-30 | E151: 3 | F151: 21,219.00 | G151: Activo | H151: 59 | I151: 33% | J151: =F151/36 -> 589.42 | K151: =F151/36*12 -> 7,073.00 | L151: 353.65 | M151: 20,865.35 | N151: =IF(VALUE(F151/60)*H151>F151,1,(F151/60)*H151) -> 20,865.35
A152: 1214 | B152: 1214-01-01-0831 | C152: PC PERSONAL | D152: 2017-06-29 | E152: 3 | F152: 1.00 | G152: Activo | H152: 32 | I152: 33% | J152: =F152/36 -> 0.03 | K152: =F152/36*12 -> 0.33 | L152: 0.47 | M152: 0.53 | N152: 0.53
A153: 1214 | B153: 1214-01-03-0800 | C153: MONITOR LCD | D153: 2017-06-29 | E153: 3 | F153: 1.00 | G153: Activo | H153: 32 | I153: 33% | J153: =F153/36 -> 0.03 | K153: =F153/36*12 -> 0.33 | L153: 0.47 | M153: 0.53 | N153: 0.53
A154: 1214 | B154: 1214-01-11-0491 | C154: MONITOR LCD | D154: 2017-06-29 | E154: 3 | F154: 1.00 | G154: Activo | H154: 32 | I154: 33% | J154: =F154/36 -> 0.03 | K154: =F154/36*12 -> 0.33 | L154: 0.47 | M154: 0.53 | N154: 0.53
A155: 1216 | B155: 1216-04-05-0014 | C155: SIERRA CIRCULAR ELECTRICA DE 1/4" | D155: 2012-03-02 | E155: 10 | F155: 7,134.65 | G155: Activo | H155: 95 | I155: 10% | J155: =F155/120 -> 59.46 | K155: =F155/120*12 -> 713.47 | L155: 7,133.65 | M155: 1.00 | N155: 1.00
A156: 1216 | B156: 1216-04-20-0002 | C156: TALADRO ELECTRICO DE 1/2" | D156: 2012-03-02 | E156: 10 | F156: 7,275.00 | G156: Activo | H156: 95 | I156: 10% | J156: 60.63 | K156: 727.50 | L156: 7,274.00 | M156: 1.00 | N156: 1.00
A157: 1216 | B157: 1216-04-02-0038 | C157: BOMBA SUMERGIBLE DE 2HP Y SUS CONECTORES | D157: 2012-03-12 | E157: 10 | F157: 29,168.78 | G157: Activo | H157: 95 | I157: 10% | J157: 243.07 | K157: 2,916.88 | L157: 29,167.78 | M157: 1.00 | N157: 1.00
A158: 1216 | B158: 1216-04-02-0039 | C158: BOMBA SUMERGIBLE DE 3 HP | D158: 2013-03-20 | E158: 10 | F158: 40,300.00 | G158: Activo | H158: 83 | I158: 10% | J158: 335.83 | K158: 4,030.00 | L158: 40,299.00 | M158: 1.00 | N158: 1.00
A159: 1216 | B159: 1216-02-21-0002 | C159: TRIPODES DE SOSTENIMIENTOS | D159: 2014-01-28 | E159: 10 | F159: 7,000.00 | G159: Activo | H159: 73 | I159: 10% | J159: 58.33 | K159: 700.00 | L159: 6,999.00 | M159: 1.00 | N159: 1.00
A160: 1216 | B160: 1216-02-33-0001 | C160: MOTOR DE CONTROL DE VOLTAGE | D160: 2014-01-28 | E160: 10 | F160: 14,226.30 | G160: Activo | H160: 73 | I160: 10% | J160: 118.55 | K160: 1,422.63 | L160: 14,225.30 | M160: 1.00 | N160: 1.00
A161: 1216 | B161: 1216-02-33-0002 | C161: MOTOR DE CONTROL DE VOLTAGE | D161: 2014-01-28 | E161: 10 | F161: 14,226.30 | G161: Activo | H161: 73 | I161: 10% | J161: 118.55 | K161: 1,422.63 | L161: 14,225.30 | M161: 1.00 | N161: 1.00
A162: 1216 | B162: 1216-02-33-0003 | C162: MOTOR DE CONTROL DE VOLTAGE | D162: 2014-01-28 | E162: 10 | F162: 14,226.30 | G162: Activo | H162: 73 | I162: 10% | J162: 118.55 | K162: 1,422.63 | L162: 14,225.30 | M162: 1.00 | N162: 1.00
A163: 1216 | B163: 1216-02-33-0004 | C163: MOTOR DE CONTROL DE VOLTAGE | D163: 2014-01-28 | E163: 10 | F163: 14,226.30 | G163: Activo | H163: 73 | I163: 10% | J163: 118.55 | K163: 1,422.63 | L163: 14,225.30 | M163: 1.00 | N163: 1.00
A164: 1216 | B164: 1216-02-33-0005 | C164: MOTOR DE CONTROL DE VOLTAGE | D164: 2014-01-28 | E164: 10 | F164: 14,226.30 | G164: Activo | H164: 73 | I164: 10% | J164: 118.55 | K164: 1,422.63 | L164: 14,225.30 | M164: 1.00 | N164: 1.00
A165: 1216 | B165: 1216-02-33-0006 | C165: MOTOR DE CONTROL DE VOLTAGE | D165: 2014-01-28 | E165: 10 | F165: 14,226.30 | G165: Activo | H165: 73 | I165: 10% | J165: 118.55 | K165: 1,422.63 | L165: 14,225.30 | M165: 1.00 | N165: 1.00
A166: 1216 | B166: 1216-02-34-0001 | C166: MOTOR VOLUMETRICO PARA 110V | D166: 2014-01-28 | E166: 10 | F166: 5,388.75 | G166: Activo | H166: 73 | I166: 10% | J166: 44.91 | K166: 538.88 | L166: 5,387.75 | M166: 1.00 | N166: 1.00
A167: 1216 | B167: 1216-02-34-0002 | C167: MOTOR VOLUMETRICO PARA 110V | D167: 2014-01-28 | E167: 10 | F167: 5,388.75 | G167: Activo | H167: 73 | I167: 10% | J167: 44.91 | K167: 538.88 | L167: 5,387.75 | M167: 1.00 | N167: 1.00
A168: 1216 | B168: 1216-02-34-0003 | C168: MOTOR VOLUMETRICO PARA 110V | D168: 2014-01-28 | E168: 10 | F168: 5,388.75 | G168: Activo | H168: 73 | I168: 10% | J168: 44.91 | K168: 538.88 | L168: 5,387.75 | M168: 1.00 | N168: 1.00
A169: 1216 | B169: 1216-02-34-0004 | C169: MOTOR VOLUMETRICO PARA 110V | D169: 2014-01-28 | E169: 10 | F169: 5,388.75 | G169: Activo | H169: 73 | I169: 10% | J169: 44.91 | K169: 538.88 | L169: 5,387.75 | M169: 1.00 | N169: 1.00
A170: 1216 | B170: 1216-02-34-0005 | C170: MOTOR VOLUMETRICO PARA 110V | D170: 2014-01-28 | E170: 10 | F170: 5,388.75 | G170: Activo | H170: 73 | I170: 10% | J170: 44.91 | K170: 538.88 | L170: 5,387.75 | M170: 1.00 | N170: 1.00
A171: 1216 | B171: 1216-02-34-0006 | C171: MOTOR VOLUMETRICO PARA 110V | D171: 2014-01-28 | E171: 10 | F171: 5,388.75 | G171: Activo | H171: 73 | I171: 10% | J171: 44.91 | K171: 538.88 | L171: 5,387.75 | M171: 1.00 | N171: 1.00
A172: 1216 | B172: 1216-02-34-0007 | C172: MOTOR VOLUMETRICO PARA 110V | D172: 2014-01-28 | E172: 10 | F172: 5,388.75 | G172: Activo | H172: 73 | I172: 10% | J172: 44.91 | K172: 538.88 | L172: 5,387.75 | M172: 1.00 | N172: 1.00
A173: 1216 | B173: 1216-02-34-0008 | C173: MOTOR VOLUMETRICO PARA 110V | D173: 2014-01-28 | E173: 10 | F173: 5,388.75 | G173: Activo | H173: 73 | I173: 10% | J173: 44.91 | K173: 538.88 | L173: 5,387.75 | M173: 1.00 | N173: 1.00
A174: 1216 | B174: 1216-02-34-0009 | C174: MOTOR VOLUMETRICO PARA 110V | D174: 2014-01-28 | E174: 10 | F174: 5,388.75 | G174: Activo | H174: 73 | I174: 10% | J174: 44.91 | K174: 538.88 | L174: 5,387.75 | M174: 1.00 | N174: 1.00
A175: 1216 | B175: 1216-02-34-0010 | C175: MOTOR VOLUMETRICO PARA 110V | D175: 2014-01-28 | E175: 10 | F175: 5,388.75 | G175: Activo | H175: 73 | I175: 10% | J175: 44.91 | K175: 538.88 | L175: 5,387.75 | M175: 1.00 | N175: 1.00
A176: 1216 | B176: 1216-02-34-0011 | C176: MOTOR VOLUMETRICO PARA 110V | D176: 2014-01-28 | E176: 10 | F176: 5,388.75 | G176: Activo | H176: 73 | I176: 10% | J176: 44.91 | K176: 538.88 | L176: 5,387.75 | M176: 1.00 | N176: 1.00
A177: 1216 | B177: 1216-02-34-0012 | C177: MOTOR VOLUMETRICO PARA 110V | D177: 2014-01-28 | E177: 10 | F177: 5,388.75 | G177: Activo | H177: 73 | I177: 10% | J177: 44.91 | K177: 538.88 | L177: 5,387.75 | M177: 1.00 | N177: 1.00
A178: 1216 | B178: 1216-02-34-0013 | C178: MOTOR VOLUMETRICO PARA 110V | D178: 2014-01-28 | E178: 10 | F178: 5,388.75 | G178: Activo | H178: 73 | I178: 10% | J178: 44.91 | K178: 538.88 | L178: 5,387.75 | M178: 1.00 | N178: 1.00
A179: 1216 | B179: 1216-02-34-0014 | C179: MOTOR VOLUMETRICO PARA 110V | D179: 2014-01-28 | E179: 10 | F179: 5,388.75 | G179: Activo | H179: 73 | I179: 10% | J179: 44.91 | K179: 538.88 | L179: 5,387.75 | M179: 1.00 | N179: 1.00
A180: 1216 | B180: 1216-02-34-0015 | C180: MOTOR VOLUMETRICO PARA 110V | D180: 2014-01-28 | E180: 10 | F180: 5,388.75 | G180: Activo | H180: 73 | I180: 10% | J180: 44.91 | K180: 538.88 | L180: 5,387.75 | M180: 1.00 | N180: 1.00
A181: 1216 | B181: 1216-02-34-0016 | C181: MOTOR VOLUMETRICO PARA 110V | D181: 2014-01-28 | E181: 10 | F181: 5,388.75 | G181: Activo | H181: 73 | I181: 10% | J181: 44.91 | K181: 538.88 | L181: 5,387.75 | M181: 1.00 | N181: 1.00
A182: 1216 | B182: 1216-02-34-0017 | C182: MOTOR VOLUMETRICO PARA 110V | D182: 2014-01-28 | E182: 10 | F182: 5,388.75 | G182: Activo | H182: 73 | I182: 10% | J182: 44.91 | K182: 538.88 | L182: 5,387.75 | M182: 1.00 | N182: 1.00
A183: 1216 | B183: 1216-02-34-0018 | C183: MOTOR VOLUMETRICO PARA 110V | D183: 2014-01-28 | E183: 10 | F183: 5,388.75 | G183: Activo | H183: 73 | I183: 10% | J183: 44.91 | K183: 538.88 | L183: 5,387.75 | M183: 1.00 | N183: =IF(VALUE(F183/60)*H183>F183,1,(F183/60)*H183) -> 1.00
A184: 1216 | B184: 1216-02-34-0019 | C184: MOTOR VOLUMETRICO PARA 110V | D184: 2014-01-28 | E184: 10 | F184: 5,388.75 | G184: Activo | H184: 73 | I184: 10% | J184: 44.91 | K184: 538.88 | L184: 5,387.75 | M184: 1.00 | N184: 1.00
A185: 1216 | B185: 1216-02-34-0020 | C185: MOTOR VOLUMETRICO PARA 110V | D185: 2014-01-28 | E185: 10 | F185: 5,388.75 | G185: Activo | H185: 73 | I185: 10% | J185: 44.91 | K185: 538.88 | L185: 5,387.75 | M185: 1.00 | N185: 1.00
A186: 1216 | B186: 1216-04-03-0055 | C186: TRANSFORMADOR 75 KVA | D186: 2014-08-14 | E186: 10 | F186: 604,727.82 | G186: Activo | H186: 66 | I186: 10% | J186: 5,039.40 | K186: 60,472.78 | L186: 604,726.82 | M186: 1.00 | N186: 1.00
A187: 1216 | B187: 1216-04-04-0119 | C187: ARBUSTEADORA PARA PODAR JARDIN | D187: 2014-10-09 | E187: 10 | F187: 2,301.00 | G187: Activo | H187: 64 | I187: 10% | J187: =F187/120 -> 19.18 | K187: =F187/120*12 -> 230.10 | L187: 2,300.00 | M187: 1.00 | N187: 1.00
A188: 1216 | B188: 1216-04-04-0120 | C188: ARBUSTEADORA PARA PODAR JARDIN | D188: 2014-10-09 | E188: 10 | F188: 2,301.00 | G188: Activo | H188: 64 | I188: 10% | J188: 19.18 | K188: 230.10 | L188: 2,300.00 | M188: 1.00 | N188: 1.00
A189: 1216 | B189: 1216-04-04-0121 | C189: ARBUSTEADORA PARA PODAR JARDIN | D189: 2014-10-09 | E189: 10 | F189: 2,301.00 | G189: Activo | H189: 64 | I189: 10% | J189: 19.18 | K189: 230.10 | L189: 2,300.00 | M189: 1.00 | N189: 1.00
A190: 1216 | B190: 1216-04-04-0122 | C190: ARBUSTEADORA PARA PODAR JARDIN | D190: 2014-10-09 | E190: 10 | F190: 2,301.00 | G190: Activo | H190: 64 | I190: 10% | J190: 19.18 | K190: 230.10 | L190: 2,300.00 | M190: 1.00 | N190: 1.00
A191: 1216 | B191: 1216-04-04-0123 | C191: ARBUSTEADORA PARA PODAR JARDIN | D191: 2014-10-09 | E191: 10 | F191: 2,301.00 | G191: Activo | H191: 64 | I191: 10% | J191: 19.18 | K191: 230.10 | L191: 2,300.00 | M191: 1.00 | N191: 1.00
A192: 1216 | B192: 1216-04-04-0124 | C192: ARBUSTEADORA PARA PODAR JARDIN | D192: 2014-10-09 | E192: 10 | F192: 2,301.00 | G192: Activo | H192: 64 | I192: 10% | J192: 19.18 | K192: 230.10 | L192: 2,300.00 | M192: 1.00 | N192: 1.00
A193: 1216 | B193: 1216-04-04-0125 | C193: ARBUSTEADORA PARA PODAR JARDIN | D193: 2014-10-09 | E193: 10 | F193: 2,301.00 | G193: Activo | H193: 64 | I193: 10% | J193: 19.18 | K193: 230.10 | L193: 2,300.00 | M193: 1.00 | N193: 1.00
A194: 1216 | B194: 1216-04-04-0126 | C194: ARBUSTEADORA PARA PODAR JARDIN | D194: 2014-10-09 | E194: 10 | F194: 2,301.00 | G194: Activo | H194: 64 | I194: 10% | J194: 19.18 | K194: 230.10 | L194: 2,300.00 | M194: 1.00 | N194: 1.00
A195: 1216 | B195: 1216-04-04-0127 | C195: ARBUSTEADORA PARA PODAR JARDIN | D195: 2014-10-09 | E195: 10 | F195: 2,301.00 | G195: Activo | H195: 64 | I195: 10% | J195: 19.18 | K195: 230.10 | L195: 2,300.00 | M195: 1.00 | N195: 1.00
A196: 1216 | B196: 1216-04-04-0128 | C196: ARBUSTEADORA PARA PODAR JARDIN | D196: 2014-10-09 | E196: 10 | F196: 2,301.00 | G196: Activo | H196: 64 | I196: 10% | J196: 19.18 | K196: 230.10 | L196: 2,300.00 | M196: 1.00 | N196: 1.00
A197: 1216 | B197: 1216-04-04-0129 | C197: ARBUSTEADORA PARA PODAR JARDIN | D197: 2014-10-09 | E197: 10 | F197: 2,301.00 | G197: Activo | H197: 64 | I197: 10% | J197: 19.18 | K197: 230.10 | L197: 2,300.00 | M197: 1.00 | N197: 1.00
A198: 1216 | B198: 1216-04-04-0130 | C198: ARBUSTEADORA PARA PODAR JARDIN | D198: 2014-10-09 | E198: 10 | F198: 2,301.00 | G198: Activo | H198: =(YEAR(NOW())-YEAR(D198))*12+MONTH(NOW())-MONTH(D198) -> 64 | I198: 10% | J198: 19.18 | K198: 230.10 | L198: =F198-M198 -> 2,300.00 | M198: =N198 -> 1.00 | N198: 1.00
A199: 1216 | B199: 1216-04-04-0131 | C199: ARBUSTEADORA PARA PODAR JARDIN | D199: 2014-10-09 | E199: 10 | F199: 2,301.00 | G199: Activo | H199: 64 | I199: 10% | J199: 19.18 | K199: 230.10 | L199: 2,300.00 | M199: 1.00 | N199: 1.00
A200: 1216 | B200: 1216-04-04-0132 | C200: ARBUSTEADORA PARA PODAR JARDIN | D200: 2014-10-09 | E200: 10 | F200: 2,301.00 | G200: Activo | H200: 64 | I200: 10% | J200: 19.18 | K200: 230.10 | L200: 2,300.00 | M200: 1.00 | N200: 1.00
A201: 1216 | B201: 1216-04-04-0133 | C201: ARBUSTEADORA PARA PODAR JARDIN | D201: 2014-10-09 | E201: 10 | F201: 2,301.00 | G201: Activo | H201: 64 | I201: 10% | J201: 19.18 | K201: 230.10 | L201: 2,300.00 | M201: 1.00 | N201: 1.00
A202: 1216 | B202: 1216-04-04-0134 | C202: ARBUSTEADORA PARA PODAR JARDIN | D202: 2014-10-09 | E202: 10 | F202: 2,301.00 | G202: Activo | H202: 64 | I202: 10% | J202: 19.18 | K202: 230.10 | L202: 2,300.00 | M202: 1.00 | N202: 1.00
... 4284 more rows
